[Event "*** Qualifier 2: Titled Tuesday 3|2 Blitz"]
[Site "Chess.com"]
[Date "2017.04.11"]
[Round "3"]
[White "Rodalquilar"]
[Black "3f32"]
[Result "0-1"]
[WhiteElo "2520"]
[BlackElo "2402"]
[TimeControl "180+2"]
[EndTime "13:37:21 PDT"]
[Termination "3f32 won by resignation"]

1. d4 {[%clk 0:03:02]} 1... Nf6 {[%clk 0:03:00]} 2. Bf4 {[%clk 0:03:03]} 2... e6
{[%clk 0:03:00.5]} 3. e3 {[%clk 0:03:04.3]} 3... c5 {[%clk 0:02:59.7]} 4. c3
{[%clk 0:03:05.2]} 4... Nc6 {[%clk 0:03:00.8]} 5. Nd2 {[%clk 0:03:06.1]} 5... d5
{[%clk 0:02:55.3]} 6. Ngf3 {[%clk 0:03:07.2]} 6... Bd6 {[%clk 0:02:40.3]} 7. Bg3
{[%clk 0:03:08.3]} 7... cxd4 {[%clk 0:02:28.3]} 8. exd4 {[%clk 0:03:09.1]} 8...
Nh5 {[%clk 0:02:25.4]} 9. Bxd6 {[%clk 0:03:00]} 9... Qxd6 {[%clk 0:02:27.3]} 10.
Bb5 {[%clk 0:02:47.2]} 10... O-O {[%clk 0:02:22.3]} 11. Bxc6 {[%clk 0:02:47.9]}
11... bxc6 {[%clk 0:02:21.4]} 12. Ne5 {[%clk 0:02:49.8]} 12... Nf4 {[%clk
0:02:14.6]} 13. Qf3 {[%clk 0:02:46]} 13... Ng6 {[%clk 0:02:13.2]} 14. Nd3 {[%clk
0:02:14.5]} 14... e5 {[%clk 0:02:03.5]} 15. Qg3 {[%clk 0:02:15.6]} 15... Bf5
{[%clk 0:01:47.9]} 16. Nxe5 {[%clk 0:01:34.9]} 16... Rae8 {[%clk 0:01:42.1]} 17.
O-O {[%clk 0:01:35.7]} 17... Nxe5 {[%clk 0:01:31.7]} 18. dxe5 {[%clk 0:01:37.6]}
18... Qxe5 {[%clk 0:01:31.9]} 19. Qxe5 {[%clk 0:01:33.2]} 19... Rxe5 {[%clk
0:01:33.8]} 20. Rfe1 {[%clk 0:01:24.1]} 20... Rfe8 {[%clk 0:01:33.9]} 21. Nf3
{[%clk 0:01:25.5]} 21... Rxe1+ {[%clk 0:01:33.2]} 22. Rxe1 {[%clk 0:01:27.4]}
22... Rxe1+ {[%clk 0:01:29]} 23. Nxe1 {[%clk 0:01:29.3]} 23... f6 {[%clk
0:01:30.8]} 24. Kf1 {[%clk 0:01:29.7]} 24... Kf7 {[%clk 0:01:22.6]} 25. Ke2
{[%clk 0:01:28.6]} 25... Ke6 {[%clk 0:01:17.3]} 26. b4 {[%clk 0:01:23.8]} 26...
Kd6 {[%clk 0:01:15.4]} 27. Ke3 {[%clk 0:01:21.5]} 27... c5 {[%clk 0:01:14.2]}
28. Nf3 {[%clk 0:01:22.8]} 28... Be4 {[%clk 0:01:14.6]} 29. Ne1 {[%clk
0:01:19.9]} 29... g5 {[%clk 0:01:10.8]} 30. a4 {[%clk 0:01:04.4]} 30... a6
{[%clk 0:00:43.5]} 31. Nd3 {[%clk 0:00:31.8]} 31... Bxd3 {[%clk 0:00:41.2]} 32.
Kxd3 {[%clk 0:00:33.7]} 32... f5 {[%clk 0:00:39.2]} 33. Ke3 {[%clk 0:00:21.9]}
33... h5 {[%clk 0:00:36]} 34. h4 {[%clk 0:00:17.9]} 34... gxh4 {[%clk
0:00:26.2]} 35. Kf4 {[%clk 0:00:19]} 35... cxb4 {[%clk 0:00:23.4]} 36. cxb4
{[%clk 0:00:19.9]} 36... d4 {[%clk 0:00:25.1]} 37. Kf3 {[%clk 0:00:10.4]} 37...
Kd5 {[%clk 0:00:26.1]} 38. Ke2 {[%clk 0:00:09.6]} 38... Kc4 {[%clk 0:00:26.9]}
39. b5 {[%clk 0:00:08.2]} 39... axb5 {[%clk 0:00:28.8]} 40. a5 {[%clk
0:00:09.8]} 40... Kc5 {[%clk 0:00:30.1]} 41. Kd3 {[%clk 0:00:08.7]} 41... f4
{[%clk 0:00:28.6]} 42. Ke4 {[%clk 0:00:05]} 42... f3 {[%clk 0:00:28.1]} 43. Kxf3
{[%clk 0:00:05.4]} 43... b4 {[%clk 0:00:29.3]} 44. Ke4 {[%clk 0:00:06.3]} 44...
b3 {[%clk 0:00:30.8]} 45. Kd3 {[%clk 0:00:07.9]} 45... Kb5 {[%clk 0:00:31]} 46.
Kxd4 {[%clk 0:00:07.3]} 46... b2 {[%clk 0:00:32.9]} 47. Kc3 {[%clk 0:00:08.3]}
47... b1=Q {[%clk 0:00:34.1]} 0-1

[Event "*** Qualifier 2: Titled Tuesday 3|2 Blitz"]
[Site "Chess.com"]
[Date "2017.04.11"]
[Round "3"]
[White "jefferyx"]
[Black "DanielNaroditsky"]
[Result "1/2-1/2"]
[WhiteElo "2617"]
[BlackElo "2781"]
[TimeControl "180+2"]
[EndTime "13:37:31 PDT"]
[Termination "Game drawn by agreement"]

1. e4 {[%clk 0:03:01.9]} 1... e5 {[%clk 0:03:00.4]} 2. Nf3 {[%clk 0:03:03.2]}
2... Nc6 {[%clk 0:03:02.1]} 3. Bc4 {[%clk 0:03:04.4]} 3... Bc5 {[%clk
0:03:02.6]} 4. c3 {[%clk 0:03:06]} 4... Nf6 {[%clk 0:03:03.9]} 5. d3 {[%clk
0:03:07.6]} 5... d6 {[%clk 0:03:04.8]} 6. O-O {[%clk 0:03:08.2]} 6... a6 {[%clk
0:03:06.5]} 7. h3 {[%clk 0:03:05.4]} 7... Ba7 {[%clk 0:03:07.6]} 8. Re1 {[%clk
0:03:06.5]} 8... h6 {[%clk 0:03:08.2]} 9. Nbd2 {[%clk 0:03:06.9]} 9... g5 {[%clk
0:03:09]} 10. b4 {[%clk 0:02:55.8]} 10... Ne7 {[%clk 0:03:08.5]} 11. d4 {[%clk
0:02:56.5]} 11... Ng6 {[%clk 0:03:09.4]} 12. Nf1 {[%clk 0:02:55.9]} 12... g4
{[%clk 0:02:50.8]} 13. hxg4 {[%clk 0:02:56.8]} 13... Nxg4 {[%clk 0:02:52.7]} 14.
N3h2 {[%clk 0:02:43.3]} 14... h5 {[%clk 0:02:43.3]} 15. Qf3 {[%clk 0:02:42.1]}
15... Qe7 {[%clk 0:02:41.5]} 16. Ne3 {[%clk 0:02:33.2]} 16... exd4 {[%clk
0:02:12.7]} 17. Nd5 {[%clk 0:01:59.5]} 17... Qh4 {[%clk 0:01:53.4]} 18. Bf4
{[%clk 0:01:55.3]} 18... N6e5 {[%clk 0:01:29.4]} 19. Qg3 {[%clk 0:01:39.7]}
19... Qxg3 {[%clk 0:01:27.3]} 20. Bxg3 {[%clk 0:01:41.6]} 20... Kd7 {[%clk
0:01:11.3]} 21. Nxg4 {[%clk 0:01:42.4]} 21... Nxg4 {[%clk 0:01:10.7]} 22. cxd4
{[%clk 0:01:43.1]} 22... Bxd4 {[%clk 0:01:12.6]} 23. Rad1 {[%clk 0:01:44]} 23...
h4 {[%clk 0:00:54.9]} 24. Bxh4 {[%clk 0:01:45.1]} 24... Be5 {[%clk 0:00:54]} 25.
g3 {[%clk 0:01:44.9]} 25... Rb8 {[%clk 0:00:33]} 26. f4 {[%clk 0:01:46]} 26...
Bg7 {[%clk 0:00:29.9]} 27. Be2 {[%clk 0:01:46.8]} 27... Nh6 {[%clk 0:00:28.2]}
28. Bf1 {[%clk 0:01:47.4]} 28... c6 {[%clk 0:00:27.3]} 29. Nb6+ {[%clk
0:01:48.2]} 29... Kc7 {[%clk 0:00:28.4]} 30. Nc4 {[%clk 0:01:47.1]} 30... Bg4
{[%clk 0:00:25.8]} 31. Be2 {[%clk 0:01:47.6]} 31... d5 {[%clk 0:00:22.3]} 32.
exd5 {[%clk 0:01:47.4]} 32... cxd5 {[%clk 0:00:24.2]} 33. Rxd5 {[%clk
0:01:47.2]} 33... Rbe8 {[%clk 0:00:24.8]} 34. Ne5 {[%clk 0:01:48.3]} 34... Bxe5
{[%clk 0:00:22.8]} 35. fxe5 {[%clk 0:01:49.6]} 35... Be6 {[%clk 0:00:22.4]} 36.
Rd3 {[%clk 0:01:39.1]} 36... Nf5 {[%clk 0:00:23.4]} 37. Bf6 {[%clk 0:01:40.7]}
37... Rhg8 {[%clk 0:00:23.7]} 38. Kf2 {[%clk 0:01:41.8]} 38... Kb8 {[%clk
0:00:22.5]} 39. g4 {[%clk 0:01:43.2]} 39... Nh6 {[%clk 0:00:23.7]} 40. g5 {[%clk
0:01:42.2]} 40... Ng4+ {[%clk 0:00:23.5]} 41. Bxg4 {[%clk 0:01:38.5]} 41... Bxg4
{[%clk 0:00:25.4]} 42. Rc1 {[%clk 0:01:37.1]} 42... Rc8 {[%clk 0:00:26.5]} 43.
Rxc8+ {[%clk 0:01:37.5]} 43... Rxc8 {[%clk 0:00:28.4]} 44. Be7 {[%clk
0:01:29.7]} 44... Be6 {[%clk 0:00:26.9]} 45. a4 {[%clk 0:01:28.2]} 45... Rc4
{[%clk 0:00:20.1]} 46. a5 {[%clk 0:01:27.7]} 46... Kc7 {[%clk 0:00:20.9]} 47.
Bc5 {[%clk 0:01:25.8]} 47... Rc2+ {[%clk 0:00:18.2]} 48. Kg3 {[%clk 0:01:25.9]}
48... Re2 {[%clk 0:00:17.8]} 49. Kf4 {[%clk 0:01:24.2]} 49... Rg2 {[%clk
0:00:17.5]} 50. Rd6 {[%clk 0:01:24.2]} 50... Kc8 {[%clk 0:00:14.8]} 51. Bb6
{[%clk 0:01:24.8]} 51... Bd7 {[%clk 0:00:16.2]} 52. Rh6 {[%clk 0:00:43.1]} 52...
Be6 {[%clk 0:00:15.7]} 53. g6 {[%clk 0:00:29.3]} 53... Rxg6 {[%clk 0:00:15.5]}
54. Rxg6 {[%clk 0:00:30.7]} 54... fxg6 {[%clk 0:00:17.4]} 55. Kg5 {[%clk
0:00:32.2]} 55... Kd7 {[%clk 0:00:18.4]} 56. Kxg6 {[%clk 0:00:33.1]} 56... Bh3
{[%clk 0:00:19.4]} 1/2-1/2

[Event "*** Qualifier 2: Titled Tuesday 3|2 Blitz"]
[Site "Chess.com"]
[Date "2017.04.11"]
[Round "3"]
[White "ShimanovAlex"]
[Black "RobertoJBM"]
[Result "1/2-1/2"]
[WhiteElo "2616"]
[BlackElo "2432"]
[TimeControl "180+2"]
[EndTime "13:37:45 PDT"]
[Termination "Game drawn by agreement"]

1. d4 {[%clk 0:02:58.2]} 1... d5 {[%clk 0:03:00.6]} 2. Bf4 {[%clk 0:02:59]} 2...
e6 {[%clk 0:02:55.7]} 3. e3 {[%clk 0:02:59.8]} 3... Bd6 {[%clk 0:02:56.7]} 4.
Bg3 {[%clk 0:02:58.8]} 4... Bxg3 {[%clk 0:02:57.4]} 5. hxg3 {[%clk 0:02:59.6]}
5... Qd6 {[%clk 0:02:59.3]} 6. Nc3 {[%clk 0:02:56.7]} 6... Nd7 {[%clk
0:02:57.2]} 7. Nf3 {[%clk 0:02:57.1]} 7... Ngf6 {[%clk 0:02:55.3]} 8. Bd3 {[%clk
0:02:47.5]} 8... a6 {[%clk 0:02:52.1]} 9. Ne2 {[%clk 0:02:29.8]} 9... e5 {[%clk
0:02:49]} 10. dxe5 {[%clk 0:02:29.1]} 10... Nxe5 {[%clk 0:02:50.9]} 11. Nxe5
{[%clk 0:02:29.3]} 11... Qxe5 {[%clk 0:02:52.1]} 12. c3 {[%clk 0:02:30.7]} 12...
c6 {[%clk 0:02:46.2]} 13. Qa4 {[%clk 0:02:29.5]} 13... Bg4 {[%clk 0:02:37.2]}
14. Qf4 {[%clk 0:02:28.1]} 14... Qxf4 {[%clk 0:02:36.1]} 15. gxf4 {[%clk
0:02:30]} 15... Bxe2 {[%clk 0:02:36.2]} 16. Kxe2 {[%clk 0:02:31]} 16... Ke7
{[%clk 0:02:34.5]} 17. g4 {[%clk 0:01:58.4]} 17... h6 {[%clk 0:02:28.5]} 18. g5
{[%clk 0:01:56.1]} 18... hxg5 {[%clk 0:02:28.1]} 19. fxg5 {[%clk 0:01:57.3]}
19... Nd7 {[%clk 0:02:29.2]} 20. f4 {[%clk 0:01:56.3]} 20... Nc5 {[%clk
0:02:28.7]} 21. Bc2 {[%clk 0:01:57.3]} 21... Rae8 {[%clk 0:02:28.7]} 22. Kf3
{[%clk 0:01:58]} 22... Kd6 {[%clk 0:02:28.7]} 23. Rad1 {[%clk 0:01:58]} 23...
Kc7 {[%clk 0:02:29.1]} 24. b4 {[%clk 0:01:56.9]} 24... Ne6 {[%clk 0:02:27.1]}
25. e4 {[%clk 0:01:53.4]} 25... dxe4+ {[%clk 0:02:25.3]} 26. Bxe4 {[%clk
0:01:55.3]} 26... g6 {[%clk 0:02:15]} 27. Bc2 {[%clk 0:01:54.4]} 27... Ng7
{[%clk 0:02:12.3]} 28. Bb3 {[%clk 0:01:54.2]} 28... Ne6 {[%clk 0:01:47.1]} 29.
Kg4 {[%clk 0:01:54.8]} 29... Rxh1 {[%clk 0:01:45.5]} 30. Rxh1 {[%clk 0:01:55.4]}
30... Re7 {[%clk 0:01:47]} 31. f5 {[%clk 0:01:54.1]} 31... gxf5+ {[%clk
0:01:45.5]} 32. Kxf5 {[%clk 0:01:56]} 32... Nd8 {[%clk 0:01:39.9]} 33. Rh3
{[%clk 0:01:55.2]} 33... Rd7 {[%clk 0:01:33.9]} 34. Rh7 {[%clk 0:01:35.4]} 34...
b5 {[%clk 0:01:20.3]} 35. a3 {[%clk 0:01:11.9]} 35... c5 {[%clk 0:00:45.8]} 36.
bxc5 {[%clk 0:01:10.9]} 36... Kc6 {[%clk 0:00:46.6]} 37. Kf4 {[%clk 0:01:05.3]}
37... a5 {[%clk 0:00:40.8]} 38. a4 {[%clk 0:01:01.7]} 38... b4 {[%clk
0:00:22.1]} 39. cxb4 {[%clk 0:01:01.2]} 39... axb4 {[%clk 0:00:24]} 40. a5
{[%clk 0:01:02]} 40... Kxc5 {[%clk 0:00:22.5]} 41. g6 {[%clk 0:01:02.5]} 41...
Rd4+ {[%clk 0:00:22.9]} 42. Ke5 {[%clk 0:01:03.4]} 42... Nc6+ {[%clk 0:00:21.9]}
43. Kf6 {[%clk 0:00:56.5]} 43... fxg6 {[%clk 0:00:23.8]} 44. a6 {[%clk
0:00:44.1]} 44... Rd6+ {[%clk 0:00:22.3]} 45. Kg5 {[%clk 0:00:44.5]} 45... Kb6
{[%clk 0:00:23.1]} 46. Bc4 {[%clk 0:00:42.7]} 46... Rd8 {[%clk 0:00:16.7]} 47.
Rb7+ {[%clk 0:00:41]} 47... Kc5 {[%clk 0:00:17.8]} 48. Bf1 {[%clk 0:00:42.1]}
48... Ra8 {[%clk 0:00:18.6]} 49. Kxg6 {[%clk 0:00:41.9]} 49... Ra7 {[%clk
0:00:19.9]} 50. Kf6 {[%clk 0:00:21.3]} 50... Rxb7 {[%clk 0:00:18.6]} 51. axb7
{[%clk 0:00:22.6]} 51... b3 {[%clk 0:00:19.8]} 52. Bd3 {[%clk 0:00:23.2]} 52...
Kb6 {[%clk 0:00:20.2]} 53. Ke6 {[%clk 0:00:22.5]} 53... Kxb7 {[%clk 0:00:19.6]}
54. Kd5 {[%clk 0:00:22.3]} 54... Kb6 {[%clk 0:00:19.2]} 1/2-1/2

[Event "*** Qualifier 2: Titled Tuesday 3|2 Blitz"]
[Site "Chess.com"]
[Date "2017.04.11"]
[Round "3"]
[White "MartinMatthiesen"]
[Black "MasterLeif"]
[Result "1/2-1/2"]
[WhiteElo "2253"]
[BlackElo "2311"]
[TimeControl "180+2"]
[EndTime "13:37:48 PDT"]
[Termination "Game drawn - insufficient material"]

1. d4 {[%clk 0:02:59.7]} 1... d5 {[%clk 0:02:59.4]} 2. c4 {[%clk 0:02:55.4]}
2... e5 {[%clk 0:03:00.6]} 3. dxe5 {[%clk 0:02:55.9]} 3... d4 {[%clk 0:03:02.5]}
4. Nf3 {[%clk 0:02:56.9]} 4... Nc6 {[%clk 0:03:04.1]} 5. a3 {[%clk 0:02:57.8]}
5... Nge7 {[%clk 0:03:05]} 6. Nbd2 {[%clk 0:02:54.4]} 6... Ng6 {[%clk
0:03:04.6]} 7. Nb3 {[%clk 0:02:52.6]} 7... Ngxe5 {[%clk 0:03:05.1]} 8. Nbxd4
{[%clk 0:02:40.2]} 8... Nxf3+ {[%clk 0:03:02.5]} 9. Nxf3 {[%clk 0:02:40.4]} 9...
Qxd1+ {[%clk 0:03:04.4]} 10. Kxd1 {[%clk 0:02:41.7]} 10... Be6 {[%clk
0:03:04.9]} 11. e3 {[%clk 0:02:40]} 11... O-O-O+ {[%clk 0:03:03.9]} 12. Kc2
{[%clk 0:02:12.5]} 12... Bf5+ {[%clk 0:03:04]} 13. Kb3 {[%clk 0:02:13]} 13...
Rd1 {[%clk 0:02:57.7]} 14. Rg1 {[%clk 0:02:02.4]} 14... Be7 {[%clk 0:02:36.7]}
15. Be2 {[%clk 0:01:58.9]} 15... Rxg1 {[%clk 0:02:32.7]} 16. Nxg1 {[%clk
0:01:59.5]} 16... Rd8 {[%clk 0:02:31]} 17. Nf3 {[%clk 0:01:56]} 17... Bf6 {[%clk
0:02:26.9]} 18. Bd2 {[%clk 0:01:48.9]} 18... g5 {[%clk 0:02:11.6]} 19. Bc3
{[%clk 0:01:46.7]} 19... Bxc3 {[%clk 0:02:10.6]} 20. Kxc3 {[%clk 0:01:47.2]}
20... h6 {[%clk 0:02:07.3]} 21. Rd1 {[%clk 0:01:43.2]} 21... Rxd1 {[%clk
0:01:55.3]} 22. Bxd1 {[%clk 0:01:43.7]} 22... Be4 {[%clk 0:01:54]} 23. h4 {[%clk
0:01:27.6]} 23... f6 {[%clk 0:01:40.3]} 24. hxg5 {[%clk 0:01:17.1]} 24... fxg5
{[%clk 0:01:32.9]} 25. g3 {[%clk 0:01:17.8]} 25... Kd7 {[%clk 0:01:31.6]} 26.
Nd4 {[%clk 0:01:05.5]} 26... Ne5 {[%clk 0:01:31.1]} 27. f4 {[%clk 0:00:55]}
27... Nf7 {[%clk 0:01:17.9]} 28. Bf3 {[%clk 0:00:47.1]} 28... Nd6 {[%clk
0:01:18.1]} 29. Bg4+ {[%clk 0:00:30.7]} 29... Ke7 {[%clk 0:01:10.3]} 30. c5
{[%clk 0:00:31.5]} 30... Ne8 {[%clk 0:01:06.2]} 31. Nf5+ {[%clk 0:00:31.6]}
31... Bxf5 {[%clk 0:01:05.4]} 32. Bxf5 {[%clk 0:00:33.5]} 32... Kf6 {[%clk
0:00:59.2]} 33. Bc8 {[%clk 0:00:33.6]} 33... b6 {[%clk 0:01:00.7]} 34. Kd4
{[%clk 0:00:34.3]} 34... bxc5+ {[%clk 0:00:39.9]} 35. Kxc5 {[%clk 0:00:34.6]}
35... Nd6 {[%clk 0:00:41.8]} 36. Bd7 {[%clk 0:00:25.8]} 36... Ne4+ {[%clk
0:00:41.2]} 37. Kc6 {[%clk 0:00:27]} 37... Nxg3 {[%clk 0:00:41.8]} 38. Kxc7
{[%clk 0:00:27.9]} 38... gxf4 {[%clk 0:00:36.1]} 39. exf4 {[%clk 0:00:28.2]}
39... h5 {[%clk 0:00:34.3]} 40. b4 {[%clk 0:00:28.7]} 40... h4 {[%clk
0:00:35.3]} 41. a4 {[%clk 0:00:29.3]} 41... Nf5 {[%clk 0:00:36.7]} 42. b5 {[%clk
0:00:29.3]} 42... h3 {[%clk 0:00:35.9]} 43. a5 {[%clk 0:00:29.8]} 43... h2
{[%clk 0:00:35.7]} 44. Bc6 {[%clk 0:00:30.3]} 44... Nd4 {[%clk 0:00:36.4]} 45.
Bh1 {[%clk 0:00:23.5]} 45... Nxb5+ {[%clk 0:00:36.6]} 46. Kb7 {[%clk 0:00:24.5]}
46... Nd4 {[%clk 0:00:18.4]} 47. Kxa7 {[%clk 0:00:20.3]} 47... Nb3 {[%clk
0:00:18.6]} 48. a6 {[%clk 0:00:19]} 48... Nc5 {[%clk 0:00:19.8]} 49. Kb6 {[%clk
0:00:17.6]} 49... Nxa6 {[%clk 0:00:20.9]} 50. Kxa6 {[%clk 0:00:18.8]} 50... Kf5
{[%clk 0:00:22.8]} 51. Kb6 {[%clk 0:00:19.8]} 51... Kxf4 {[%clk 0:00:24.4]} 52.
Kc5 {[%clk 0:00:20.8]} 52... Ke3 {[%clk 0:00:25.7]} 53. Kd5 {[%clk 0:00:20.5]}
53... Kf2 {[%clk 0:00:27.2]} 54. Be4 {[%clk 0:00:21.9]} 54... h1=Q {[%clk
0:00:28]} 55. Bxh1 {[%clk 0:00:22.3]} 1/2-1/2

[Event "*** Qualifier 2: Titled Tuesday 3|2 Blitz"]
[Site "Chess.com"]
[Date "2017.04.11"]
[Round "3"]
[White "evgenysharapov"]
[Black "PowerThinking2650"]
[Result "1-0"]
[WhiteElo "2286"]
[BlackElo "2220"]
[TimeControl "180+2"]
[EndTime "13:37:56 PDT"]
[Termination "evgenysharapov won by resignation"]

1. e4 {[%clk 0:03:00.8]} 1... e5 {[%clk 0:03:00.3]} 2. Nf3 {[%clk 0:03:01.2]}
2... Nc6 {[%clk 0:03:01.6]} 3. Bb5 {[%clk 0:03:02]} 3... a6 {[%clk 0:03:02.8]}
4. Ba4 {[%clk 0:03:02.6]} 4... Nf6 {[%clk 0:03:03.9]} 5. O-O {[%clk 0:03:02.6]}
5... Be7 {[%clk 0:03:05.4]} 6. Re1 {[%clk 0:03:02.9]} 6... b5 {[%clk 0:03:06.2]}
7. Bb3 {[%clk 0:03:03.2]} 7... d6 {[%clk 0:03:07.8]} 8. c3 {[%clk 0:03:00.1]}
8... O-O {[%clk 0:03:08.3]} 9. h3 {[%clk 0:03:00.2]} 9... Bb7 {[%clk 0:03:09.2]}
10. d4 {[%clk 0:03:00.4]} 10... Re8 {[%clk 0:03:09.7]} 11. Nbd2 {[%clk
0:03:00.5]} 11... Bf8 {[%clk 0:03:10.6]} 12. a3 {[%clk 0:02:44.1]} 12... h6
{[%clk 0:03:01]} 13. Bc2 {[%clk 0:02:42.8]} 13... Nb8 {[%clk 0:03:01.1]} 14. Qe2
{[%clk 0:02:39.1]} 14... Nbd7 {[%clk 0:03:01.1]} 15. dxe5 {[%clk 0:02:37.2]}
15... dxe5 {[%clk 0:02:55.8]} 16. Nf1 {[%clk 0:02:37.4]} 16... c5 {[%clk
0:02:33.8]} 17. Ng3 {[%clk 0:02:33.4]} 17... g6 {[%clk 0:02:34]} 18. Nh2 {[%clk
0:02:25.5]} 18... c4 {[%clk 0:02:15.8]} 19. Ng4 {[%clk 0:02:24.7]} 19... Nxg4
{[%clk 0:02:05.8]} 20. hxg4 {[%clk 0:02:24.1]} 20... Nc5 {[%clk 0:01:58.9]} 21.
Be3 {[%clk 0:02:23.9]} 21... Qh4 {[%clk 0:01:57.4]} 22. Rad1 {[%clk 0:02:20]}
22... Rad8 {[%clk 0:01:55.1]} 23. Rxd8 {[%clk 0:02:19.4]} 23... Rxd8 {[%clk
0:01:55.2]} 24. Rd1 {[%clk 0:02:20.3]} 24... Rxd1+ {[%clk 0:01:50.4]} 25. Qxd1
{[%clk 0:02:20.5]} 25... Bc8 {[%clk 0:01:45.7]} 26. Qd5 {[%clk 0:02:14]} 26...
Qe7 {[%clk 0:01:03.7]} 27. f3 {[%clk 0:02:06.1]} 27... Bb7 {[%clk 0:00:57.6]}
28. Qd2 {[%clk 0:02:06.3]} 28... Kh7 {[%clk 0:00:54]} 29. Nf1 {[%clk 0:01:55.1]}
29... Ne6 {[%clk 0:00:52]} 30. g3 {[%clk 0:01:49.4]} 30... Qc7 {[%clk
0:00:52.2]} 31. Kg2 {[%clk 0:01:48.4]} 31... Bc5 {[%clk 0:00:52.5]} 32. Bxc5
{[%clk 0:01:46.7]} 32... Nxc5 {[%clk 0:00:47]} 33. Ne3 {[%clk 0:01:46.4]} 33...
a5 {[%clk 0:00:42.9]} 34. Kf2 {[%clk 0:01:29.5]} 34... a4 {[%clk 0:00:43.3]} 35.
Kg2 {[%clk 0:01:29.6]} 35... Kg7 {[%clk 0:00:40.7]} 36. Kf2 {[%clk 0:01:30]}
36... Bc6 {[%clk 0:00:35.1]} 37. Ke2 {[%clk 0:01:30.1]} 37... Qd7 {[%clk
0:00:29.3]} 38. Qxd7 {[%clk 0:01:29.1]} 38... Nxd7 {[%clk 0:00:28.7]} 39. f4
{[%clk 0:01:21.6]} 39... Nc5 {[%clk 0:00:22.5]} 40. Nd5 {[%clk 0:01:13.6]} 40...
Bxd5 {[%clk 0:00:18.4]} 41. exd5 {[%clk 0:01:14.1]} 41... exf4 {[%clk
0:00:15.7]} 42. gxf4 {[%clk 0:01:14.6]} 42... Kf6 {[%clk 0:00:16.4]} 43. Ke3
{[%clk 0:01:13]} 43... Ke7 {[%clk 0:00:17.2]} 44. Kd4 {[%clk 0:01:13]} 44... Kd6
{[%clk 0:00:18.4]} 45. f5 {[%clk 0:01:11]} 45... gxf5 {[%clk 0:00:10]} 46. Bxf5
{[%clk 0:01:09.2]} 46... f6 {[%clk 0:00:09.9]} 47. Bc2 {[%clk 0:01:06.2]} 47...
Nd7 {[%clk 0:00:09.8]} 48. Bf5 {[%clk 0:00:57]} 48... Ne5 {[%clk 0:00:10.7]} 49.
Ke4 {[%clk 0:00:57.8]} 49... Nf7 {[%clk 0:00:09.8]} 50. Be6 {[%clk 0:00:58.2]}
50... Ng5+ {[%clk 0:00:10.6]} 51. Kf5 {[%clk 0:00:59]} 51... Nf3 {[%clk
0:00:09.1]} 52. Kxf6 {[%clk 0:00:57.6]} 52... Ne1 {[%clk 0:00:08.4]} 53. Kg6
{[%clk 0:00:57.6]} 53... Nd3 {[%clk 0:00:09.5]} 54. Kxh6 {[%clk 0:00:58.3]}
54... Nxb2 {[%clk 0:00:10.8]} 55. g5 {[%clk 0:00:58.8]} 55... Nd3 {[%clk
0:00:11.9]} 56. g6 {[%clk 0:00:59.4]} 1-0

[Event "*** Qualifier 2: Titled Tuesday 3|2 Blitz"]
[Site "Chess.com"]
[Date "2017.04.11"]
[Round "3"]
[White "aRk_iN"]
[Black "rst2003"]
[Result "0-1"]
[WhiteElo "2144"]
[BlackElo "2105"]
[TimeControl "180+2"]
[EndTime "13:37:59 PDT"]
[Termination "rst2003 won by resignation"]

1. e4 {[%clk 0:03:02]} 1... c5 {[%clk 0:02:59.8]} 2. Nf3 {[%clk 0:03:02.9]} 2...
d6 {[%clk 0:03:00.5]} 3. d4 {[%clk 0:03:04.3]} 3... cxd4 {[%clk 0:03:02.1]} 4.
Nxd4 {[%clk 0:03:06.2]} 4... Nf6 {[%clk 0:03:03.3]} 5. Nc3 {[%clk 0:03:07.6]}
5... g6 {[%clk 0:03:04.4]} 6. Be3 {[%clk 0:03:04.9]} 6... Bg7 {[%clk 0:03:05.6]}
7. f3 {[%clk 0:03:06.3]} 7... Nc6 {[%clk 0:03:07.2]} 8. Qd2 {[%clk 0:03:06.7]}
8... O-O {[%clk 0:03:07.8]} 9. Bc4 {[%clk 0:03:04.7]} 9... Bd7 {[%clk
0:03:08.8]} 10. O-O {[%clk 0:03:03.1]} 10... Rc8 {[%clk 0:03:08.5]} 11. Be2
{[%clk 0:03:01.7]} 11... Ne5 {[%clk 0:03:08.9]} 12. b3 {[%clk 0:03:00.5]} 12...
a6 {[%clk 0:03:03.7]} 13. Nd5 {[%clk 0:02:54]} 13... Nxd5 {[%clk 0:03:03.2]} 14.
exd5 {[%clk 0:02:55.9]} 14... b5 {[%clk 0:03:02.3]} 15. h3 {[%clk 0:02:42.2]}
15... f5 {[%clk 0:02:16.7]} 16. f4 {[%clk 0:02:38.5]} 16... Nf7 {[%clk
0:02:17.5]} 17. Rad1 {[%clk 0:02:25]} 17... Qc7 {[%clk 0:02:16.7]} 18. Bf3
{[%clk 0:02:01.7]} 18... Rfe8 {[%clk 0:02:01.7]} 19. Rf2 {[%clk 0:01:55.6]}
19... Qc3 {[%clk 0:01:39.4]} 20. Nc6 {[%clk 0:01:15.8]} 20... Qxd2 {[%clk
0:01:38]} 21. Rfxd2 {[%clk 0:01:07.8]} 21... e5 {[%clk 0:01:27.2]} 22. dxe6
{[%clk 0:01:00.5]} 22... Rxe6 {[%clk 0:01:22.3]} 23. Na7 {[%clk 0:00:34.6]}
23... Rxe3 {[%clk 0:01:03.8]} 24. Nxc8 {[%clk 0:00:35.6]} 24... Bxc8 {[%clk
0:01:05.1]} 25. Bd5 {[%clk 0:00:37]} 25... Bf8 {[%clk 0:01:01.4]} 26. Kf2 {[%clk
0:00:36.8]} 26... Re8 {[%clk 0:00:54.6]} 27. Re2 {[%clk 0:00:36]} 27... Rxe2+
{[%clk 0:00:55.1]} 28. Kxe2 {[%clk 0:00:37.9]} 28... Kg7 {[%clk 0:00:56.1]} 29.
Kd3 {[%clk 0:00:30.3]} 29... Nd8 {[%clk 0:00:55.7]} 30. Re1 {[%clk 0:00:30]}
30... Bd7 {[%clk 0:00:55.4]} 31. c4 {[%clk 0:00:20.8]} 31... Nc6 {[%clk
0:00:54.9]} 32. a3 {[%clk 0:00:20.9]} 32... Na5 {[%clk 0:00:47.7]} 33. Kc2
{[%clk 0:00:18.9]} 33... bxc4 {[%clk 0:00:39.3]} 34. bxc4 {[%clk 0:00:20.8]}
34... Kf6 {[%clk 0:00:31.7]} 35. Rb1 {[%clk 0:00:22]} 35... Bc6 {[%clk
0:00:24.4]} 36. Bxc6 {[%clk 0:00:20.6]} 36... Nxc6 {[%clk 0:00:26]} 37. Rb6
{[%clk 0:00:20.8]} 37... Nd4+ {[%clk 0:00:21]} 38. Kd3 {[%clk 0:00:22.2]} 38...
Ne6 {[%clk 0:00:22]} 39. g3 {[%clk 0:00:20.3]} 39... Nc5+ {[%clk 0:00:22.8]} 40.
Ke3 {[%clk 0:00:10.5]} 40... Ke6 {[%clk 0:00:24.4]} 41. g4 {[%clk 0:00:09.5]}
41... Bg7 {[%clk 0:00:24.9]} 42. g5 {[%clk 0:00:10.2]} 42... Bf8 {[%clk
0:00:25.4]} 43. h4 {[%clk 0:00:11.6]} 43... Be7 {[%clk 0:00:26.1]} 44. Rb8
{[%clk 0:00:12.2]} 44... Kf7 {[%clk 0:00:23.6]} 45. Rh8 {[%clk 0:00:12.6]} 45...
Kg7 {[%clk 0:00:24.8]} 46. Re8 {[%clk 0:00:13.7]} 46... Kf7 {[%clk 0:00:25.9]}
47. Rh8 {[%clk 0:00:14.8]} 47... Bf8 {[%clk 0:00:25.7]} 48. Kd4 {[%clk
0:00:11.5]} 48... Bg7+ {[%clk 0:00:26.3]} 49. Kd5 {[%clk 0:00:12.1]} 49... Bxh8
{[%clk 0:00:27.8]} 50. Kxd6 {[%clk 0:00:14]} 50... Ne4+ {[%clk 0:00:28.8]} 51.
Kd5 {[%clk 0:00:13.8]} 51... Bb2 {[%clk 0:00:29.6]} 52. c5 {[%clk 0:00:15.7]}
52... Bxa3 {[%clk 0:00:29.8]} 53. c6 {[%clk 0:00:17.5]} 53... Bd6 {[%clk
0:00:30.8]} 54. Kc4 {[%clk 0:00:18]} 54... Bc7 {[%clk 0:00:31.9]} 55. Kb4 {[%clk
0:00:18.3]} 55... a5+ {[%clk 0:00:32.6]} 56. Kb5 {[%clk 0:00:19.7]} 56... Ke6
{[%clk 0:00:33.5]} 57. Ka6 {[%clk 0:00:21.2]} 57... Kd6 {[%clk 0:00:34.4]} 58.
Kb7 {[%clk 0:00:23.1]} 58... a4 {[%clk 0:00:35.2]} 0-1